[Event "EYCC Girls-U16 2019"]
[Site "Bratislava"]
[Date "2019.08.10"]
[Round "9.20"]
[White "Levitan, Ronit"]
[Black "Rzali, Sabina"]
[Result "0-1"]
[ECO "C10"]
[WhiteElo "2022"]
[BlackElo "1691"]
[Annotator "NA"]
[PlyCount "158"]
[EventDate "2019.08.02"]
[EventType "swiss"]
[EventCountry "SVK"]
[SourceTitle "playchess.com"]
[Source "ChessBase"]
[SourceQuality "1"]
[TimeControl "40/5400+30:1800+30"]

1. e4 {[%emt 0:00:00]} e6 {[%emt 0:00:00]} 2. d4 {[%emt 0:00:00]} d5 {[%emt 0:00:00]} 3. Nd2 {[%emt 0:00:00]} dxe4 {[%emt 0:00:00]} 4. Nxe4 {[%emt 0:00:13]} Bd7 {[%emt 0:00:00]} 5. Nf3 {[%emt 0:01:33]} Bc6 {[%emt 0:00:00]} 6. Bd3 {[%emt 0:00:29]} Nd7 {[%emt 0:00:03]} 7. c3 {[%emt 0:01:31]} Ngf6 {[%emt 0:00:12]} 8. Ng3 {[%emt 0:04:27]} Be7 {[%emt 0:00:58]} 9. O-O {[%emt 0:00:19]} O-O {[%emt 0:00:18]} 10. Re1 {[%emt 0:02:41]} Bxf3 {[%emt 0:00:13]} 11. Qxf3 {[%emt 0:00:20]} c6 {[%emt 0:00:03]} 12. a4 {[%emt 0:03:48]} a5 {[%emt 0:00:40]} 13. Bc2 {[%emt 0:00:20]} Re8 {[%emt 0:02:33]} 14. Nf1 {[%emt 0:06:41]} Qc7 {[%emt 0:09:06]} 15. Bf4 {[%emt 0:11:07]} Bd6 {[%emt 0:02:06]} 16. Bxd6 {[%emt 0:04:05]} Qxd6 {[%emt 0:00:09]} 17. Rad1 {[%emt 0:01:21]} Nd5 {[%emt 0:12:33]} 18. Nd2 {[%emt 0:05:56]} Qe7 {[%emt 0:16:07]} 19. Qd3 {[%emt 0:05:05]} Nf8 {[%emt 0:01:37]} 20. Nf3 {[%emt 0:02:53]} Rad8 {[%emt 0:04:25]} 21. Bb1 {[%emt 0:09:04]} Qf6 {[%emt 0:06:50]} 22. g3 {[%emt 0:04:08]} Nb6 {[%emt 0:08:38]} 23. Bc2 {[%emt 0:01:38]} g6 {[%emt 0:06:32]} 24. Ne5 {[%emt 0:02:28]} Nfd7 {[%emt 0:03:14]} 25. Nxd7 Nxd7 26. Qc4 {[%emt 0:15:10]} Qe7 {[%emt 0:08:46]} 27. Qb3 {[%emt 0:04:16]} Nf6 {[%emt 0:04:09]} 28. Bd3 {[%emt 0:09:09]} Qc7 {[%emt 0:00:49]} 29. Bf1 {[%emt 0:00:22]} Rd6 {[%emt 0:01:33]} 30. Bg2 {[%emt 0:00:10]} Red8 {[%emt 0:00:33]} 31. Re5 {[%emt 0:01:28]} Nd5 {[%emt 0:02:36]} 32. Rde1 {[%emt 0:00:17]} Nf6 {[%emt 0:04:24]} 33. h4 {[%emt 0:01:01]} Kg7 {[%emt 0:02:32]} 34. Bf3 {[%emt 0:00:16]} h5 {[%emt 0:00:44]} 35. Qc2 {[%emt 0:00:13]} Rh8 {[%emt 0:01:10]} 36. Qc1 {[%emt 0:00:45]} Nd7 {[%emt 0:00:49]} 37. R5e2 {[%emt 0:01:40]} c5 {[%emt 0:01:23]} 38. d5 {[%emt 0:02:38]} exd5 {[%emt 0:01:42]} 39. Re7 {[%emt 0:00:07]} Qb6 {[%emt 0:01:02]} 40. Qg5 {[%emt 0:00:00]} Nf6 {[%emt 0:00:00]} 41. c4 {[%emt 0:08:41]} Qxb2 {[%emt 0:11:31]} 42. cxd5 {[%emt 0:03:36]} Rhd8 {[%emt 0:05:05]} 43. g4 {[%emt 0:13:14]} hxg4 {[%emt 0:03:35]} 44. Bxg4 {[%emt 0:06:38]} Nxg4 {[%emt 0:01:07]} 45. Qxg4 {[%emt 0:00:26]} Rxd5 {[%emt 0:02:02]} 46. h5 {[%emt 0:01:37]} Rxh5 {[%emt 0:08:00]} 47. Rxf7+ {[%emt 0:00:15]} Kxf7 {[%emt 0:00:12]} 48. Qe6+ {[%emt 0:00:06]} Kg7 {[%emt 0:00:22]} 49. Qe7+ {[%emt 0:00:11]} Kh6 {[%emt 0:00:05]} 50. Qxd8 {[%emt 0:00:17]} Rg5+ {[%emt 0:01:00]} 51. Kf1 {[%emt 0:00:57]} Qd4 {[%emt 0:00:59]} 52. Qxd4 {[%emt 0:00:27]} cxd4 {[%emt 0:00:03]} 53. Rb1 {[%emt 0:00:58]} Rc5 {[%emt 0:00:20]} 54. Rxb7 {[%emt 0:00:46]} Rc4 {[%emt 0:00:03]} 55. Ke2 {[%emt 0:00:19]} Rxa4 {[%emt 0:00:04]} 56. Kd3 {[%emt 0:00:06]} Kg5 {[%emt 0:02:16]} 57. Rf7 {[%emt 0:00:15]} Rb4 {[%emt 0:00:20]} 58. f4+ {[%emt 0:00:52]} Kg4 {[%emt 0:00:30]} 59. Rf6 {[%emt 0:00:06]} Kh5 {[%emt 0:00:43]} 60. Rf8 {[%emt 0:01:03]} Rb5 {[%emt 0:01:52]} 61. Rh8+ {[%emt 0:01:12]} Kg4 {[%emt 0:00:10]} 62. Rg8 {[%emt 0:00:05]} Rb6 {[%emt 0:00:55]} 63. Ke4 {[%emt 0:00:49]} Re6+ {[%emt 0:00:09]} 64. Kxd4 {[%emt 0:00:04]} Kxf4 {[%emt 0:01:13]} 65. Ra8 {[%emt 0:00:53]} Re5 {[%emt 0:00:46]} 66. Rf8+ {[%emt 0:00:14]} Rf5 {[%emt 0:00:03]} 67. Re8 {[%emt 0:00:06]} g5 {[%emt 0:00:11]} 68. Re4+ {[%emt 0:00:07]} Kg3 {[%emt 0:00:08]} 69. Ke3 {[%emt 0:00:16]} g4 {[%emt 0:00:06]} 70. Ra4 {[%emt 0:00:39]} Kh3 {[%emt 0:00:18]} 71. Rd4 {[%emt 0:01:44]} g3 {[%emt 0:00:21]} 72. Rd8 {[%emt 0:00:21]} g2 {[%emt 0:00:33]} 73. Rg8 {[%emt 0:00:07]} Kh2 {[%emt 0:00:05]} 74. Rh8+ {[%emt 0:00:06]} Kg1 {[%emt 0:00:12]} 75. Ke4 {[%emt 0:00:16]} Rf7 {[%emt 0:00:38]} 76. Rb8 {[%emt 0:00:42]} Kf2 {[%emt 0:00:06]} 77. Rb2+ {[%emt 0:00:05]} Kg3 {[%emt 0:00:06]} 78. Rb3+ {[%emt 0:00:09]} Kh2 {[%emt 0:00:07]} 79. Rb2 {[%emt 0:00:16]} Kh1 {[%emt 0:00:03]} 0-1

[Event "EYCC Girls-U16 2019"]
[Site "Bratislava"]
[Date "2019.08.10"]
[Round "9.21"]
[White "Gombocz, Zsofia"]
[Black "Garau, Francesca"]
[Result "0-1"]
[ECO "B13"]
[WhiteElo "1981"]
[BlackElo "1835"]
[Annotator "NA RC"]
[PlyCount "120"]
[EventDate "2019.08.02"]
[EventType "swiss"]
[EventCountry "SVK"]
[SourceTitle "playchess.com"]
[Source "ChessBase"]
[SourceQuality "1"]
[TimeControl "40/5400+30:1800+30"]

1. e4 {[%emt 0:00:00]} c6 {[%emt 0:00:00]} 2. d4 {[%emt 0:00:00]} d5 {[%emt 0:00:00]} 3. exd5 {[%emt 0:00:00]} cxd5 {[%emt 0:00:03]} 4. Bd3 {[%emt 0:00:00]} Nc6 {[%emt 0:00:18]} 5. c3 {[%emt 0:00:09]} Nf6 {[%emt 0:00:49]} 6. Bf4 {[%emt 0:00:23]} Bg4 {[%emt 0:00:55]} 7. Qb3 {[%emt 0:00:30]} Qd7 {[%emt 0:01:08]} 8. Nd2 {[%emt 0:00:44]} e6 {[%emt 0:03:34]} 9. Ngf3 {[%emt 0:00:48]} Bxf3 {[%emt 0:01:21]} 10. Nxf3 {[%emt 0:00:12]} Be7 {[%emt 0:02:11]} 11. Ne5 {[%emt 0:01:25]} Qc8 {[%emt 0:01:09]} 12. Nxc6 {[%emt 0:02:44]} bxc6 {[%emt 0:00:19]} 13. O-O {[%emt 0:00:14]} O-O {[%emt 0:01:20]} 14. c4 {[%emt 0:09:19]} Qd7 {[%emt 0:08:51]} 15. Rfd1 {[%emt 0:03:51]} Bd6 {[%emt 0:04:41]} 16. Bxd6 {[%emt 0:05:14]} Qxd6 {[%emt 0:01:19]} 17. c5 {[%emt 0:00:18]} Qc7 {[%emt 0:02:15]} 18. Re1 {[%emt 0:02:26]} Rfe8 {[%emt 0:05:43]} 19. Re5 {[%emt 0:07:25]} Ng4 {[%emt 0:05:13]} 20. Rh5 {[%emt 0:00:11]} Nf6 {[%emt 0:04:39]} 21. Bxh7+ {[%emt 0:02:28]} Kh8 {[%emt 0:04:14]} 22. Qh3 {[%emt 0:22:02]} Nxh5 {[%emt 0:02:38]} 23. Qxh5 {[%emt 0:00:35]} Qf4 {[%emt 0:01:35]} 24. Bd3+ {[%emt 0:05:21]} Qh6 {[%emt 0:01:32]} 25. Qxf7 {[%emt 0:04:17]} Rf8 {[%emt 0:02:16]} 26. Qg6 {[%emt 0:02:01]} Qxg6 {[%emt 0:00:33]} 27. Bxg6 {[%emt 0:00:07]} Rf6 {[%emt 0:02:22]} 28. Bh5 {[%emt 0:03:08]} Rb8 {[%emt 0:02:12]} 29. b3 {[%emt 0:00:34]} g6 {[%emt 0:01:52]} 30. Bg4 {[%emt 0:01:54]} Rb4 {[%emt 0:02:17]} 31. Rd1 {[%emt 0:01:20]} Rf4 {[%emt 0:01:39]} 32. Bxe6 {[%emt 0:00:37]} Rbxd4 {[%emt 0:01:35]} 33. Rxd4 {[%emt 0:03:16]} Rxd4 {[%emt 0:00:12]} 34. Kf1 {[%emt 0:00:05]} Re4 {[%emt 0:05:12]} 35. Bd7 {[%emt 0:06:19]} d4 {[%emt 0:02:58]} 36. Bxc6 {[%emt 0:00:13]} Re5 {[%emt 0:00:24]} 37. Bb5 {[%emt 0:00:14]} Rxc5 {[%emt 0:00:35]} 38. Bd3 {[%emt 0:00:35]} Kg7 {[%emt 0:01:25]} 39. Ke2 {[%emt 0:00:47]} Kf6 {[%emt 0:04:45]} 40. Kd2 {[%emt 0:00:00]} a5 {[%emt 0:00:00]} 41. h3 {[%emt 0:07:24]} g5 {[%emt 0:03:51]} 42. Bc4 {[%emt 0:02:43]} Ke5 {[%emt 0:02:38]} 43. Kd3 {[%emt 0:02:33]} Rc8 {[%emt 0:01:28]} 44. a4 {[%emt 0:01:55]} Rf8 {[%emt 0:02:13]} 45. Ke2 {[%emt 0:00:13]} Kd6 {[%emt 0:00:47]} 46. f3 {[%emt 0:07:46]} Kc5 {[%emt 0:01:35]} 47. Kd3 {[%emt 0:02:11]} Re8 {[%emt 0:00:41]} 48. Kd2 {[%emt 0:01:18]} Re3 {[%emt 0:00:36]} 49. Bf7 {[%emt 0:01:39]} Kd6 {[%emt 0:00:41]} 50. Bc4 {[%emt 0:01:34]} Ke5 {[%emt 0:00:41]} 51. Bf7 {[%emt 0:00:47]} Kf4 {[%emt 0:00:58]} 52. Bc4 {[%emt 0:00:17]} Kg3 {[%emt 0:01:11]} 53. Bd5 {[%emt 0:00:06]} Kf2 {[%emt 0:09:05]} 54. g4 {[%emt 0:02:12]} Kg3 {[%emt 0:01:48]} 55. Kc2 {[%emt 0:00:51]} Kxh3 {[%emt 0:00:45]} 56. Kd2 {[%emt 0:00:22]} Kg3 {[%emt 0:00:33]} 57. Kc2 {[%emt 0:00:39]} Kf4 {[%emt 0:01:00]} 58. Bb7 {[%emt 0:01:03]} Rc3+ {[%emt 0:01:56]} 59. Kb2 {[%emt 0:01:57]} Rc7 {[%emt 0:01:07]} 60. Be4 {[%emt 0:00:25]} Ke3 {[%emt 0:00:22]} 0-1

[Event "EYCC Girls-U16 2019"]
[Site "Bratislava"]
[Date "2019.08.10"]
[Round "9.22"]
[White "Duran, Esma Doga"]
[Black "Pecorini, Angie"]
[Result "1/2-1/2"]
[ECO "A04"]
[WhiteElo "2096"]
[BlackElo "1781"]
[Annotator "NA RC"]
[PlyCount "104"]
[EventDate "2019.08.02"]
[EventType "swiss"]
[EventCountry "SVK"]
[SourceTitle "playchess.com"]
[Source "ChessBase"]
[SourceQuality "1"]
[TimeControl "40/5400+30:1800+30"]

1. Nf3 {[%emt 0:00:00]} c5 {[%emt 0:00:02]} 2. c4 {[%emt 0:02:50]} Nc6 {[%emt 0:00:04]} 3. g3 {[%emt 0:00:31]} Nd4 {[%emt 0:01:58]} 4. e3 {[%emt 0:02:11]} Nxf3+ {[%emt 0:00:04]} 5. Qxf3 {[%emt 0:00:12]} Nf6 {[%emt 0:00:08]} 6. Nc3 {[%emt 0:00:08]} d6 {[%emt 0:00:26]} 7. Bg2 {[%emt 0:00:46]} Rb8 {[%emt 0:00:24]} 8. h3 {[%emt 0:00:32]} g6 {[%emt 0:05:04]} 9. b3 {[%emt 0:00:35]} Bg7 {[%emt 0:00:19]} 10. Bb2 {[%emt 0:00:01]} O-O {[%emt 0:01:56]} 11. O-O {[%emt 0:00:32]} a6 {[%emt 0:02:16]} 12. Qe2 {[%emt 0:14:59]} b5 {[%emt 0:10:16]} 13. d3 {[%emt 0:07:50]} e6 {[%emt 0:14:34]} 14. e4 {[%emt 0:05:18]} Nd7 {[%emt 0:01:32]} 15. f4 {[%emt 0:04:07]} Bd4+ {[%emt 0:06:45]} 16. Kh2 {[%emt 0:00:02]} Qf6 {[%emt 0:14:42]} 17. Nd1 {[%emt 0:17:24]} b4 {[%emt 0:03:35]} 18. Rb1 {[%emt 0:02:13]} a5 {[%emt 0:06:02]} 19. Ne3 {[%emt 0:01:45]} Bxb2 {[%emt 0:03:56]} 20. Rxb2 {[%emt 0:00:26]} Qg7 {[%emt 0:05:17]} 21. Rd2 {[%emt 0:23:22]} Bb7 {[%emt 0:08:32]} 22. Nc2 {[%emt 0:00:50]} e5 {[%emt 0:05:34]} 23. Ne3 {[%emt 0:03:52]} Ra8 {[%emt 0:00:38]} 24. a4 {[%emt 0:02:54]} f6 {[%emt 0:02:44]} 25. h4 {[%emt 0:00:39]} Nb8 {[%emt 0:00:46]} 26. Bh3 {[%emt 0:04:42]} Nc6 {[%emt 0:01:10]} 27. Be6+ {[%emt 0:00:02]} Kh8 {[%emt 0:00:06]} 28. Nc2 {[%emt 0:01:14]} Nd8 {[%emt 0:03:55]} 29. Bd5 {[%emt 0:00:30]} Bxd5 {[%emt 0:00:39]} 30. cxd5 {[%emt 0:00:50]} Nf7 {[%emt 0:01:00]} 31. Ne3 {[%emt 0:00:32]} h5 {[%emt 0:00:23]} 32. f5 {[%emt 0:00:53]} Nh6 {[%emt 0:00:31]} 33. Qf3 {[%emt 0:01:12]} Rf7 {[%emt 0:00:37]} 34. Nc4 {[%emt 0:01:14]} Ng4+ {[%emt 0:00:16]} 35. Kh3 {[%emt 0:00:11]} Ra6 {[%emt 0:00:25]} 36. fxg6 {[%emt 0:01:32]} Qxg6 {[%emt 0:00:06]} 37. Ne3 {[%emt 0:00:32]} Nxe3 {[%emt 0:00:44]} 38. Qxe3 {[%emt 0:00:03]} Qg4+ {[%emt 0:00:29]} 39. Kh2 {[%emt 0:00:02]} Kg7 {[%emt 0:00:20]} 40. Rf5 {[%emt 0:00:00]} Ra8 {[%emt 0:00:00]} 41. Rdf2 {[%emt 0:01:01]} Qd1 {[%emt 0:06:59]} 42. g4 {[%emt 0:31:00]} hxg4 {[%emt 0:03:07]} 43. Rh5 {[%emt 0:00:27]} Rh8 {[%emt 0:01:38]} 44. Rxh8 {[%emt 0:00:56]} Kxh8 {[%emt 0:00:06]} 45. Rf5 {[%emt 0:00:11]} Kg8 {[%emt 0:02:10]} 46. h5 {[%emt 0:00:52]} Rg7 {[%emt 0:05:26]} 47. Qg3 {[%emt 0:00:48]} Qd2+ {[%emt 0:01:20]} 48. Kg1 {[%emt 0:00:19]} Qc1+ {[%emt 0:00:39]} 49. Kg2 {[%emt 0:00:23]} Qd2+ {[%emt 0:00:41]} 50. Kg1 {[%emt 0:00:01]} Kf7 {[%emt 0:06:05]} 51. Qf2 {[%emt 0:00:31]} Qh6 {[%emt 0:00:44]} 52. Kg2 {[%emt 0:00:31]} g3 {[%emt 0:02:33]} 1/2-1/2

[Event "EYCC Girls-U16 2019"]
[Site "Bratislava"]
[Date "2019.08.10"]
[Round "9.23"]
[White "Filippova, Margarita"]
[Black "Taragelova, Martina"]
[Result "1-0"]
[ECO "D00"]
[WhiteElo "2029"]
[BlackElo "1719"]
[Annotator "NA RC"]
[PlyCount "57"]
[EventDate "2019.08.02"]
[EventType "swiss"]
[EventCountry "SVK"]
[SourceTitle "playchess.com"]
[Source "ChessBase"]
[SourceQuality "1"]
[TimeControl "40/5400+30:1800+30"]

1. d4 {[%emt 0:00:00]} d5 {[%emt 0:00:00]} 2. Bf4 {[%emt 0:00:00]} Nf6 {[%emt 0:00:12]} 3. e3 {[%emt 0:00:00]} c5 {[%emt 0:00:43]} 4. c3 {[%emt 0:00:00]} e6 {[%emt 0:01:00]} 5. Nd2 {[%emt 0:00:00]} Nc6 {[%emt 0:01:07]} 6. Bd3 {[%emt 0:00:12]} Be7 {[%emt 0:01:04]} 7. Ngf3 {[%emt 0:00:12]} a6 {[%emt 0:04:13]} 8. Ne5 {[%emt 0:00:44]} Nxe5 {[%emt 0:01:31]} 9. dxe5 {[%emt 0:00:17]} Nd7 {[%emt 0:02:54]} 10. e4 {[%emt 0:02:26]} b5 {[%emt 0:03:41]} 11. exd5 {[%emt 0:01:00]} exd5 {[%emt 0:00:11]} 12. O-O {[%emt 0:07:10]} Nf8 {[%emt 0:04:51]} 13. Bg3 {[%emt 0:05:49]} Bh4 {[%emt 0:07:48]} 14. Qf3 {[%emt 0:04:13]} Ng6 {[%emt 0:02:17]} 15. a4 {[%emt 0:01:54]} Bxg3 {[%emt 0:03:05]} 16. Qxg3 {[%emt 0:03:06]} c4 {[%emt 0:03:00]} 17. Bc2 {[%emt 0:04:59]} Qb6 {[%emt 0:04:18]} 18. axb5 {[%emt 0:02:37]} O-O {[%emt 0:02:26]} 19. Nf3 {[%emt 0:03:36]} Bd7 {[%emt 0:08:25]} 20. bxa6 {[%emt 0:05:18]} Rxa6 {[%emt 0:04:30]} 21. Rxa6 {[%emt 0:00:37]} Qxa6 {[%emt 0:00:08]} 22. Nd4 {[%emt 0:01:48]} Qb6 {[%emt 0:07:16]} 23. f4 {[%emt 0:03:00]} Ra8 {[%emt 0:08:36]} 24. f5 {[%emt 0:02:59]} Nf8 {[%emt 0:01:09]} 25. f6 {[%emt 0:02:05]} Ne6 {[%emt 0:07:19]} 26. Qh4 {[%emt 0:02:27]} g6 {[%emt 0:01:16]} 27. Qh6 {[%emt 0:01:47]} Kh8 {[%emt 0:01:55]} 28. Rf3 {[%emt 0:06:25]} Rg8 {[%emt 0:03:50]} 29. Qxh7+ {[%emt 0:01:10]} 1-0

[Event "EYCC Girls-U16 2019"]
[Site "Bratislava"]
[Date "2019.08.10"]
[Round "9.24"]
[White "Afanasieva, Alexandra"]
[Black "Dejanovic, Tereza"]
[Result "1-0"]
[ECO "B90"]
[WhiteElo "2085"]
[BlackElo "1834"]
[Annotator "NA RC"]
[PlyCount "103"]
[EventDate "2019.08.02"]
[EventType "swiss"]
[EventCountry "SVK"]
[SourceTitle "playchess.com"]
[Source "ChessBase"]
[SourceQuality "1"]
[TimeControl "40/5400+30:1800+30"]

1. e4 {[%emt 0:00:00]} c5 {[%emt 0:00:00]} 2. Nf3 {[%emt 0:00:00]} d6 {[%emt 0:00:00]} 3. d4 {[%emt 0:00:00]} cxd4 {[%emt 0:00:00]} 4. Nxd4 {[%emt 0:00:00]} Nf6 {[%emt 0:00:00]} 5. Nc3 {[%emt 0:00:00]} a6 {[%emt 0:00:00]} 6. h3 {[%emt 0:00:00]} e6 {[%emt 0:00:03]} 7. g4 {[%emt 0:00:02]} b5 {[%emt 0:03:13]} 8. Bg2 {[%emt 0:00:08]} Bb7 {[%emt 0:00:04]} 9. O-O {[%emt 0:01:17]} Be7 {[%emt 0:06:51]} 10. e5 {[%emt 0:14:56]} Bxg2 {[%emt 0:02:57]} 11. exf6 {[%emt 0:01:16]} Bxf1 {[%emt 0:00:06]} 12. fxe7 {[%emt 0:00:11]} Qxe7 {[%emt 0:01:52]} 13. Kxf1 {[%emt 0:01:45]} Qh4 {[%emt 0:07:29]} 14. Qf3 {[%emt 0:02:17]} d5 {[%emt 0:01:09]} 15. Nxd5 {[%emt 0:09:45]} Ra7 {[%emt 0:13:44]} 16. Bf4 {[%emt 0:08:20]} O-O {[%emt 0:14:09]} 17. Bxb8 {[%emt 0:02:44]} Rd7 {[%emt 0:00:40]} 18. Bf4 {[%emt 0:02:09]} Rxd5 {[%emt 0:01:33]} 19. c3 {[%emt 0:01:33]} Qd8 {[%emt 0:05:42]} 20. Re1 {[%emt 0:03:14]} Qd7 {[%emt 0:04:08]} 21. Qe4 {[%emt 0:06:42]} Re8 {[%emt 0:03:07]} 22. Bg3 {[%emt 0:02:32]} b4 {[%emt 0:04:35]} 23. Re3 {[%emt 0:03:02]} bxc3 {[%emt 0:00:45]} 24. bxc3 {[%emt 0:00:01]} Qa4 {[%emt 0:01:01]} 25. Kg2 {[%emt 0:13:47]} Qxa2 {[%emt 0:03:05]} 26. Nc6 {[%emt 0:00:38]} Rd7 {[%emt 0:09:55]} 27. c4 {[%emt 0:02:32]} a5 {[%emt 0:02:10]} 28. c5 {[%emt 0:01:38]} Rd1 {[%emt 0:04:21]} 29. Ne7+ {[%emt 0:04:38]} Kh8 {[%emt 0:00:39]} 30. Nf5 {[%emt 0:06:35]} Qd5 {[%emt 0:05:45]} 31. Qxd5 {[%emt 0:00:53]} Rxd5 {[%emt 0:00:05]} 32. Nd6 {[%emt 0:02:00]} Rf8 {[%emt 0:04:01]} 33. Rc3 {[%emt 0:00:41]} e5 {[%emt 0:00:37]} 34. Nf5 {[%emt 0:03:29]} Rc8 {[%emt 0:01:25]} 35. c6 {[%emt 0:00:06]} Rc7 {[%emt 0:00:13]} 36. Kf3 {[%emt 0:06:20]} f6 {[%emt 0:00:29]} 37. Ke4 {[%emt 0:00:23]} Rd8 {[%emt 0:00:47]} 38. f4 {[%emt 0:01:53]} g6 {[%emt 0:00:25]} 39. fxe5 {[%emt 0:01:03]} gxf5+ {[%emt 0:00:16]} 40. gxf5 {[%emt 0:00:00]} Rdc8 {[%emt 0:00:00]} 41. Kd5 {[%emt 0:06:02]} a4 {[%emt 0:05:18]} 42. e6 {[%emt 0:01:39]} Ra7 {[%emt 0:00:30]} 43. Bd6 {[%emt 0:01:02]} Ra5+ {[%emt 0:02:19]} 44. Rc5 {[%emt 0:00:17]} Raa8 {[%emt 0:00:20]} 45. Be7 {[%emt 0:01:12]} Kg7 {[%emt 0:00:27]} 46. Rc3 {[%emt 0:01:12]} Ra5+ {[%emt 0:00:52]} 47. Kd6 {[%emt 0:01:04]} a3 {[%emt 0:01:49]} 48. Rg3+ {[%emt 0:00:38]} Kh6 {[%emt 0:00:04]} 49. Bxf6 {[%emt 0:00:12]} Ra6 {[%emt 0:01:12]} 50. Rc3 {[%emt 0:00:14]} a2 {[%emt 0:00:04]} 51. Rc1 {[%emt 0:00:05]} Rca8 {[%emt 0:02:18]} 52. e7 {[%emt 0:01:36]} 1-0